fUSD/lending_fUSD_20241013
["ID","MTS","AMOUNT","RATE_DAILY","PERIOD"]
[340215757,1728847855398,-669.67,0.00059999,7]
[340215758,1728847855410,-669.67,0.00059999,7]
[340215759,1728847855421,-669.87,0.00059999,7]
[340215760,1728847855432,-500.0,0.00059999,120]
[340215761,1728847855442,-500.0,0.00059999,120]
[340215762,1728847855453,-500.0,0.00059999,120]
[340215763,1728847855463,-500.0,0.00059999,120]
[340215764,1728847855474,-500.0,0.00059999,120]
[340215765,1728847855487,-504.27331083,0.00059999,120]
[340215766,1728847855497,-500.0,0.00059999,120]
[340215767,1728847855508,-541.63049368,0.00059999,120]
[340215768,1728847855520,-500.0,0.00059999,120]
[340215769,1728847855533,-500.0,0.00059999,120]
[340215770,1728847855543,-500.0,0.00059999,120]
[340215771,1728847855552,-500.0,0.00059999,120]
[340215772,1728847855562,-500.0,0.00059999,120]
[340215773,1728847855574,-500.0,0.00059999,120]
[340215774,1728847855586,-500.0,0.00059999,120]
[340215775,1728847855599,-500.0,0.00059999,120]
[340215776,1728847855609,-500.0,0.00059999,120]
[340215777,1728847855618,-500.0,0.00059999,120]
[340215778,1728847855629,-500.0,0.00059999,120]
[340215779,1728847855639,-500.0,0.00059999,120]
[340215780,1728847855648,-500.0,0.00059999,120]
[340215781,1728847855658,-578.1,0.00059999,120]
[340215782,1728847855667,-500.0,0.00059999,120]
[340215783,1728847855676,-500.0,0.00059999,120]
[340215784,1728847855686,-500.0,0.00059999,120]
[340215785,1728847855696,-500.0,0.00059999,120]
[340215786,1728847855707,-500.0,0.00059999,120]
[340215787,1728847855718,-500.0,0.00059999,120]
[340215788,1728847855728,-500.0,0.00059999,120]
[340215789,1728847855738,-500.0,0.00059999,120]
[340215790,1728847855750,-500.0,0.00059999,120]
[340215791,1728847855761,-500.0,0.00059999,120]
[340215792,1728847855773,-161.46168157,0.00059999,120]
[340215793,1728847855782,-500.0,0.00059999,14]
[340215794,1728847855792,-500.0,0.00059999,14]
[340215795,1728847855802,-500.0,0.00059999,14]
[340215796,1728847855812,-500.0,0.00059999,120]
[340215797,1728847855822,-500.0,0.00059999,14]
[340215798,1728847855831,-483.70597747,0.00059999,120]
[340215799,1728847855840,-500.0,0.00059999,120]
[340215800,1728847855850,-500.0,0.00059999,120]
[340215801,1728847855860,-500.0,0.00059999,120]
[340215802,1728847855869,-574.35,0.00059999,120]
[340215803,1728847855879,-574.35,0.00059999,120]
[340215804,1728847855889,-574.35,0.00059999,120]
[340215805,1728847855898,-574.35,0.00059999,120]
[340215806,1728847855908,-574.35,0.00059999,120]
[340215807,1728847855919,-500.0,0.00059999,120]
[340215808,1728847855928,-500.0,0.00059999,120]
[340215809,1728847855939,-500.0,0.00059999,120]
[340215810,1728847855949,-574.35,0.00059999,120]
[340215811,1728847855960,-574.35,0.00059999,120]
[340215812,1728847855971,-574.35,0.00059999,120]
[340215813,1728847855980,-574.35,0.00059999,120]
[340215814,1728847855990,-574.35,0.00059999,120]
[340215815,1728847856000,-574.35,0.00059999,120]
[340215816,1728847856010,-1464.96,0.00059999,30]
[340215817,1728847856021,-574.35,0.00059999,120]
[340215818,1728847856031,-1464.96,0.00059999,30]
[340215819,1728847856041,-1464.96,0.00059999,30]
[340215820,1728847856051,-574.35,0.00059999,120]
[340215821,1728847856061,-1464.96,0.00059999,30]
[340215822,1728847856071,-574.35,0.00059999,120]
[340215823,1728847856083,-1464.96,0.00059999,30]
[340215824,1728847856092,-574.35,0.00059999,120]
[340215825,1728847856102,-1464.96,0.00059999,30]
[340215826,1728847856111,-574.35,0.00059999,120]
[340215827,1728847856120,-574.45,0.00059999,120]
[340215828,1728847856130,-1464.96,0.00059999,30]
[340215829,1728847856139,-1464.96,0.00059999,30]
[340215830,1728847856149,-1464.96,0.00059999,30]
[340215831,1728847856158,-1464.96,0.00059999,30]
[340215832,1728847856168,-1464.96,0.00059999,30]
[340215833,1728847856177,-1464.96,0.00059999,30]
[340215834,1728847856187,-500.0,0.00059999,120]
[340215835,1728847856196,-1464.96,0.00059999,30]
[340215836,1728847856206,-500.0,0.00059999,120]
[340215837,1728847856215,-1464.96,0.00059999,30]
[340215838,1728847856225,-500.0,0.00059999,120]
[340215839,1728847856235,-1464.96,0.00059999,30]
[340215840,1728847856244,-500.0,0.00059999,120]
[340215841,1728847856254,-1464.96,0.00059999,30]
[340215842,1728847856263,-500.0,0.00059999,120]
[340215843,1728847856274,-1465.05,0.00059999,30]
[340215844,1728847856285,-500.0,0.00059999,120]
[340215845,1728847856294,-500.0,0.00059999,120]
[340215846,1728847856304,-500.0,0.00059999,120]
[340215847,1728847856314,-500.0,0.00059999,120]
[340215848,1728847856323,-500.0,0.00059999,120]
[340215849,1728847856333,-500.0,0.00059999,120]
[340215850,1728847856342,-500.0,0.00059999,120]
[340215851,1728847856352,-632.6,0.00059999,120]
[340215852,1728847856362,-500.0,0.00059999,120]
[340215853,1728847856371,-500.0,0.00059999,120]
[340215854,1728847856381,-500.0,0.00059999,120]
[340215855,1728847856390,-50000.0,0.0006,60]
[340215856,1728847856400,-5171.10278163,0.0006,120]
[340215857,1728847856410,-1665690.27140465,0.0006,120]
[340215858,1728847856420,-427.23709585,0.0006,120]
[340215859,1728847856429,-358.73635122,0.0006,120]
[340215860,1728847856439,-150.0,0.0006,120]
[340215861,1728847856449,-1000000.0,0.0006,120]
[340215862,1728847856458,-163.44882856,0.0006,120]
[340215863,1728847856468,-200000.0,0.0006,120]
[340215864,1728847856478,-18295.4926665,0.0006,120]
[340215865,1728847856487,-172.39750194,0.0006,60]
[340215866,1728847856497,-40681.77996345,0.0006,117]
[340215867,1728847856507,-164665.0,0.0006,15]
[340215868,1728847856517,-308307.0,0.0006,15]
[340215869,1728847856531,-31338.99967385,0.0006,100]
[340215870,1728847856540,-200.0,0.0006,30]
[340215871,1728847856550,-166.87,0.0006,60]
[340215872,1728847856560,-2110.0,0.0006,2]
[340215873,1728847856571,-200.0,0.0006,30]
[340215874,1728847856580,-159.03944562,0.0006,2]
[340215875,1728847856590,-1198.6601682,0.00060055,2]
[340215876,1728847856602,-356.5685433,0.00060096,2]
[340215877,1728847856613,-151.0,0.00060219,120]
[340215878,1728847856624,-1264.69,0.00060273,120]
[340215879,1728847856633,-3045.44,0.00060274,120]
[340215880,1728847856643,-600.0,0.00060274,28]
[340215881,1728847856654,-414.5061306,0.00060343,120]
[340215882,1728847856663,-2110.0,0.000605,2]
[340215883,1728847856672,-1264.69,0.00060547,120]
[340215884,1728847856683,-200.0,0.000606,30]
[340215885,1728847856694,-414.5061306,0.00060715,120]
[340215886,1728847856704,-151.0,0.00060767,120]
[340215887,1728847856714,-1264.69,0.00060821,120]
[340215888,1728847856725,-414.5061306,0.00060951,120]
[340215889,1728847856735,-1000.0,0.00060999,120]
[340215890,1728847856746,-5000.0,0.00061,120]
[340215891,1728847856755,-2110.0,0.00061,2]
[340215892,1728847856764,-1264.87827558,0.00061095,120]
[340215893,1728847856775,-200.0,0.00061206,30]
[340215894,1728847856784,-414.5061306,0.0006124,120]
[340215895,1728847856794,-151.0,0.00061315,120]
[340215896,1728847856804,-2110.0,0.000615,2]
[340215897,1728847856816,-414.5061306,0.00061614,120]
[340215898,1728847856826,-414.5061306,0.00061759,120]
[340215899,1728847856837,-1588.0,0.000618,120]
[340215900,1728847856847,-200.0,0.00061818,30]
[340215901,1728847856856,-151.0,0.00061863,120]
[340215902,1728847856866,-414.5061306,0.0006192,120]
[340215903,1728847856876,-1000.0,0.00061999,120]
[340215904,1728847856886,-300.0,0.00062,120]
[340215905,1728847856895,-5000.0,0.00062,120]
[340215906,1728847856905,-2110.0,0.00062,2]
[340215907,1728847856914,-151.0,0.00062082,120]
[340215908,1728847856923,-414.5061306,0.00062323,120]
[340215909,1728847856933,-151.0,0.00062411,120]
[340215910,1728847856943,-200.0,0.00062436,30]
[340215911,1728847856952,-150.0,0.000625,120]
[340215912,1728847856963,-2110.0,0.000625,2]
[340215913,1728847856972,-414.5061306,0.00062612,120]
[340215914,1728847856982,-750.0,0.00062729,14]
[340215915,1728847856991,-414.5061306,0.00062836,120]
[340215916,1728847857002,-3939.37391326,0.0006288,120]
[340215917,1728847857012,-151.0,0.00062959,120]
[340215918,1728847857023,-1000.0,0.00062999,120]
[340215919,1728847857032,-27636.52325415,0.00063,10]
[340215920,1728847857042,-4985.25,0.00063,120]
[340215921,1728847857051,-10000.0,0.00063,30]
[340215922,1728847857061,-20197.83384666,0.00063,120]
[340215923,1728847857071,-430.30667588,0.00063,120]
[340215924,1728847857081,-2110.0,0.00063,2]
[340215925,1728847857091,-2000.0,0.00063014,30]
[340215926,1728847857101,-414.5061306,0.00063178,120]
[340215927,1728847857110,-155.74,0.0006347,2]
[340215928,1728847857120,-1485.85,0.000635,2]
[340215929,1728847857129,-151.0,0.00063507,120]
[340215930,1728847857139,-414.5061306,0.00063524,120]
[340215931,1728847857148,-414.5061306,0.0006361,120]
[340215932,1728847857158,-414.5061306,0.00063879,120]
[340215933,1728847857280,-1000.0,0.00063999,120]
[340215934,1728847857313,-2000.0,0.00064,7]
[340215935,1728847857323,-273.9269909,0.00064,30]
[340215936,1728847857332,-150.0,0.00064,120]
[340215937,1728847857342,-614.049999,0.00064,120]
[340215938,1728847857351,-421.05967462,0.00064,120]
[340215939,1728847857360,-150.0,0.00064049,120]
[340215940,1728847857370,-151.0,0.00064055,120]
[340215941,1728847857379,-414.5061306,0.00064178,120]
[340215942,1728847857389,-414.5061306,0.00064398,120]
[340215943,1728847857400,-1043.65687892,0.000645,120]
[340215944,1728847857409,-10562.64,0.0006456,30]
[340215945,1728847857421,-151.0,0.00064603,120]
[340215946,1728847857432,-151.0,0.00064603,120]
[340215947,1728847857444,-14409.13435707,0.000647,120]
[340215948,1728847857453,-414.5061306,0.00064712,120]
[340215949,1728847857464,-15000.0,0.0006478,30]
[340215950,1728847857474,-200.0,0.000648,120]
[340215951,1728847857483,-168.629832,0.000649,30]
[340215952,1728847857494,-1000.0,0.00064999,120]
[340215953,1728847857506,-5000.0,0.00065,120]
[340215954,1728847857518,-2050.0,0.00065,120]
[340215955,1728847857532,-372.0,0.00065,120]
[340215956,1728847857541,-414.50613075,0.00065057,120]
[340215957,1728847857551,-151.0,0.00065151,120]
[340215958,1728847857563,-101531.0,0.0006522,30]
[340215959,1728847857572,-291.2678865,0.0006538,120]
[340215960,1728847857583,-5077.60499377,0.000655,120]
[340215961,1728847857593,-151.0,0.00065699,120]
[340215962,1728847857604,-2523.0,0.000657,120]
[340215963,1728847857614,-500.0,0.00065738,60]
[340215964,1728847857626,-600.0,0.00065753,120]
[340215965,1728847857638,-753.08426376,0.00065755,60]
[340215966,1728847857648,-500.0,0.00065756,60]
[340215967,1728847857658,-338.5751271,0.00065763,2]
[340215968,1728847857668,-2761.37665868,0.00065763,2]
[340215969,1728847857677,-500.0,0.00065798,60]
[340215970,1728847857687,-500.0,0.000658,60]
[340215971,1728847857697,-200.0,0.000658,120]
[340215972,1728847857708,-500.0,0.00065804,60]
[340215973,1728847857718,-356.5685433,0.00065814,4]
[340215974,1728847857728,-500.0,0.00065817,60]
[340215975,1728847857738,-3465.0,0.00065858,90]
[340215976,1728847857747,-4235.0,0.00065858,90]
[340215977,1728847857758,-600000.0,0.00065859,120]
[340215978,1728847857767,-465947.93395646,0.00065859,120]
[340215979,1728847857778,-500.0,0.00065863,60]
[340215980,1728847857788,-500.0,0.0006587,60]
[340215981,1728847857797,-250.0,0.0006587,90]
[340215982,1728847857807,-500.0,0.00065877,60]
[340215983,1728847857817,-1665.6312909,0.00065955,4]
[340215984,1728847857827,-150.0,0.0006597,120]
[340215985,1728847857836,-250.0,0.0006597,90]
[340215986,1728847857846,-1134.25332048,0.0006598,120]
[340215987,1728847857856,-1000.0,0.00065999,120]
[340215988,1728847857866,-51548172.44254343,0.00066,60]
[340215989,1728847857934,-658.0173,0.00066,60]
[340215990,1728847857952,-161.62998891,0.00012228,2]
[340215991,1728847857963,-1807.20706516,0.00066,60]
[340215995,1728848124207,550.0,0.0001,2]
[340216004,1728848671416,5669.0,0.0001,60]
[340216041,1728849032004,-1762.399701,0.00010844,2]
[340216042,1728849032016,-150.0,0.00010899,2]
[340216043,1728849032027,-300.0,0.00010899,2]
[340216044,1728849032037,-5717.42438657,0.000109,2]
[340216045,1728849032050,-1182.37724129,0.000109,2]
[340216046,1728849032063,-365.35210606,0.000109,2]
[340216047,1728849032075,-1117.22136038,0.000109,2]
[340216048,1728849032087,-3569.7731183,0.000109,2]
[340216049,1728849032103,-545.44642781,0.000109,2]
[340216050,1728849032123,-261.15578167,0.000109,2]
[340216051,1728849032135,-517.85068696,0.000109,2]
[340216052,1728849032148,-91850.39889096,0.000109,2]
[340216053,1728849032158,-155.99,0.00010959,2]
[340216054,1728849032168,-159.2,0.00010959,2]
[340216055,1728849032178,-420.0,0.00011978,2]
[340216056,1728849032188,-600.0,0.00012,2]
[340216057,1728849032198,-600.0,0.00012329,2]
[340216058,1728849032208,-600.0,0.00012329,2]
[340216059,1728849032219,-600.0,0.00012329,2]
[340216060,1728849032229,-600.0,0.00012329,2]
[340216061,1728849032239,-600.0,0.00012329,2]
[340216062,1728849032249,-600.0,0.00012329,2]
[340216063,1728849032262,-600.0,0.00012329,2]
[340216064,1728849032272,-600.0,0.00012329,2]
[340216065,1728849032282,-600.0,0.00012329,2]
[340216066,1728849032293,-600.0,0.00012329,2]
[340216067,1728849032303,-587.0,0.00013164,2]
[340216068,1728849032312,-167.72852133,0.000138,2]
[340216069,1728849032324,-650.0,0.00014,2]
[340216070,1728849032334,-499.99,0.00014,2]
[340216071,1728849032344,-823.0,0.00014467,2]
[340216072,1728849032354,-1152.0,0.00015899,2]
[340216073,1728849032365,-4722.49,0.00016116,2]
[340216074,1728849032376,-1613.0,0.00017473,2]
[340216075,1728849032386,-2258.0,0.00019203,2]
[340216076,1728849032396,-2751.0,0.00019242,2]
[340216077,1728849032406,-200.0,0.00020178,2]
[340216078,1728849032416,-150.0,0.00020262,2]
[340216079,1728849032427,-500.0,0.00020383,2]
[340216080,1728849032436,-250.0,0.0002054,2]
[340216081,1728849032447,-150.0,0.00020803,2]
[340216082,1728849032458,-2997.0,0.00021104,2]
[340216083,1728849032468,-150.0,0.00021344,2]
[340216084,1728849032478,-300.0,0.00021511,2]
[340216085,1728849032487,-151.0,0.00021597,2]
[340216086,1728849032497,-150.0,0.00021885,2]
[340216087,1728849032508,-151.95,0.00022137,30]
[340216088,1728849032519,-180.0,0.00022223,2]
[340216089,1728849032530,-225.97,0.0002238,3]
[340216090,1728849032540,-677.93,0.0002238,3]
[340216091,1728849032550,-1752.27001259,0.00022402,4]
[340216092,1728849032561,-646.41087479,0.00022402,2]
[340216093,1728849032570,-1508.64385664,0.00022412,2]
[340216094,1728849032580,-150.0,0.00022427,2]
[340216095,1728849032589,-1508.64385664,0.00022435,2]
[340216096,1728849032599,-1508.64385664,0.00022457,2]
[340216097,1728849032610,-500.0,0.00022473,2]
[340216098,1728849032622,-196.88204439,0.00022479,2]
[340216099,1728849032631,-500.0,0.00022479,2]
[340216100,1728849032641,-371.9309952,0.00022479,2]
[340216101,1728849032651,-500.0,0.00022479,2]
[340216102,1728849032660,-500.0,0.00022479,2]
[340216103,1728849032669,-500.0,0.00022479,2]
[340216104,1728849032679,-500.0,0.00022479,2]
[340216105,1728849032689,-500.0,0.00022479,2]
[340216106,1728849032698,-337.415803,0.00022479,2]
[340216107,1728849032708,-500.0,0.00022479,2]
[340216108,1728849032717,-500.0,0.00022479,2]
[340216109,1728849032728,-500.0,0.00022479,2]
[340216110,1728849032737,-500.0,0.00022479,2]
[340216111,1728849032747,-500.0,0.00022479,2]
[340216112,1728849032758,-500.0,0.00022479,2]
[340216113,1728849032769,-446.29159058,0.00022479,2]
[340216114,1728849032779,-500.0,0.00022479,2]
[340216115,1728849032788,-500.0,0.00022479,2]
[340216116,1728849032799,-500.0,0.00022479,2]
[340216117,1728849032809,-500.0,0.00022479,2]
[340216118,1728849032819,-1508.64385664,0.0002248,2]
[340216119,1728849032830,-241.4453116,0.0002248,2]
[340216120,1728849032839,-5094.50333143,0.0002248,5]
[340216121,1728849032852,-613.0,0.0002248,5]
[340216122,1728849032865,-297.99594133,0.0002248,5]
[340216123,1728849032877,-1649.09184316,0.0002248,5]
[340216124,1728849032889,-17578.32732118,0.0002248,5]
[340216125,1728849032908,-2586.06677235,0.0002248,5]
[340216126,1728849032921,-1555.83133083,0.0002248,5]
[340216127,1728849032933,-1041.76047077,0.0002248,5]
[340216128,1728849032945,-1606.48503914,0.0002248,5]
[340216129,1728849032956,-1074.32,0.0002248,5]
[340216130,1728849032968,-2175.883476,0.0002248,5]
[340216131,1728849032980,-92802.51460242,0.0002248,5]
[340216132,1728849032993,-78961.27611039,0.0002248,5]
[340216133,1728849033003,-43260.8820432,0.0002248,5]
[340216134,1728849033013,-88730.1669596,0.00022483,5]
[340216135,1728849033023,-33896.22903341,0.00022483,5]
[340216136,1728849033036,-388.88750137,0.00022483,5]
[340216137,1728849033049,-4250.50142563,0.00022483,5]
[340216138,1728849033061,-8679.35967242,0.00022483,5]
[340216139,1728849033074,-450.037073,0.00022483,5]
[340216140,1728849033085,-42789.55683897,0.00022483,5]
[340216141,1728849033098,-151.5424564,0.00022487,2]
[340216142,1728849033109,-15731.2298339,0.00022489,5]
[340216143,1728849033119,-655.63,0.00022489,2]
[340216144,1728849033129,-655.63,0.00022489,2]
[340216145,1728849033140,-655.63,0.00022489,2]
[340216146,1728849033150,-655.63,0.00022489,2]
[340216147,1728849033160,-655.63,0.00022489,2]
[340216148,1728849033170,-500.0,0.00022489,2]
[340216149,1728849033181,-500.0,0.00022489,2]
[340216150,1728849033191,-500.0,0.00022489,2]
[340216151,1728849033202,-500.0,0.00022489,2]
[340216152,1728849033213,-500.0,0.00022489,2]
[340216153,1728849033223,-500.0,0.00022489,2]
[340216154,1728849033233,-500.0,0.00022489,2]
[340216155,1728849033244,-500.0,0.00022489,2]
[340216156,1728849033254,-500.0,0.00022489,2]
[340216157,1728849033265,-500.0,0.00022489,2]
[340216158,1728849033275,-500.0,0.00022489,2]
[340216159,1728849033285,-468.57365017,0.00022489,2]
[340216160,1728849033295,-6420.31803056,0.0002249,5]
[340216161,1728849033307,-2375.16069498,0.0002249,5]
[340216162,1728849033320,-2455.52727664,0.0002249,5]
[340216163,1728849033332,-6023.72737881,0.0002249,5]
[340216164,1728849033344,-6674.23832769,0.0002249,5]
[340216165,1728849033357,-4796.58478385,0.0002249,5]
[340216166,1728849033369,-2631.5279132,0.0002249,5]
[340216167,1728849033381,-1875.42835547,0.0002249,5]
[340216168,1728849033394,-3078.55932045,0.0002249,5]
[340216169,1728849033407,-3358.39627723,0.0002249,5]
[340216170,1728849033419,-397.92779334,0.0002249,5]
[340216171,1728849033431,-3941.02759438,0.0002249,5]
[340216172,1728849033442,-5439.96,0.0002249,5]
[340216173,1728849033454,-709.73244454,0.0002249,5]
[340216174,1728849033466,-21585.86360883,0.0002249,5]
[340216175,1728849033478,-3099.91875805,0.0002249,5]
[340216176,1728849033491,-368.7704374,0.0002249,5]
[340216177,1728849033503,-478.59396333,0.0002249,5]
[340216179,1728849038161,-257.82237684,0.0002249,5]
[340216180,1728849038176,-2212.02777319,0.0002249,5]
[340216181,1728849038192,-301.11415239,0.0002249,5]
[340216182,1728849038203,-2111.13867946,0.0002249,5]
[340216183,1728849038217,-1833.36838384,0.0002249,5]
[340216184,1728849038229,-1600.0,0.0002249,5]
[340216185,1728849038244,-1586.04561394,0.0002249,5]
[340216186,1728849038256,-151000.99862059,0.0002249,5]
[340216187,1728849038268,-51126.4969601,0.0002249,5]
[340216188,1728849038277,-196.88204439,0.0002249,2]
[340216189,1728849038287,-196.88204439,0.0002249,2]
[340216190,1728849038297,-788.0,0.00022493,2]
[340216191,1728849038308,-186873.0,0.00022493,2]
[340216192,1728849038317,-196.83290514,0.00022493,2]
[340216193,1728849038327,-1060.7971948,0.00022497,2]
[340216194,1728849038339,-500.0,0.00022499,2]
[340216195,1728849038351,-500.0,0.00022499,2]
[340216196,1728849038361,-500.0,0.00022499,2]
[340216197,1728849038371,-500.0,0.00022499,2]
[340216198,1728849038380,-500.0,0.00022499,2]
[340216199,1728849038389,-500.0,0.00022499,2]
[340216200,1728849038399,-500.0,0.00022499,2]
[340216201,1728849038409,-438.2,0.00022499,2]
[340216202,1728849038419,-655.63,0.00022499,2]
[340216203,1728849038429,-655.63,0.00022499,2]
[340216204,1728849038438,-655.63,0.00022499,2]
[340216205,1728849038448,-655.63,0.00022499,2]
[340216206,1728849038458,-655.63,0.00022499,2]
[340216207,1728849038468,-655.63,0.00022499,2]
[340216208,1728849038478,-655.63,0.00022499,2]
[340216209,1728849038488,-655.63,0.00022499,2]
[340216210,1728849038500,-655.63,0.00022499,2]
[340216211,1728849038512,-655.63,0.00022499,2]
[340216212,1728849038523,-655.63,0.00022499,2]
[340216213,1728849038534,-655.63,0.00022499,2]
[340216214,1728849038543,-655.63,0.00022499,2]
[340216215,1728849038553,-655.63,0.00022499,2]
[340216216,1728849038564,-655.63,0.00022499,2]
[340216217,1728849038574,-655.63,0.00022499,2]
[340216218,1728849038586,-655.63,0.00022499,2]
[340216219,1728849038596,-655.63,0.00022499,2]
[340216220,1728849038607,-655.85,0.00022499,2]
[340216221,1728849038616,-500.0,0.00022499,2]
[340216222,1728849038626,-500.0,0.00022499,2]
[340216223,1728849038636,-500.0,0.00022499,2]
[340216224,1728849038645,-500.0,0.00022499,2]
[340216225,1728849038655,-500.0,0.00022499,2]
[340216226,1728849038665,-408.56,0.00022499,2]
[340216227,1728849038674,-299424.92747623,0.000225,2]
[340216228,1728849038686,-952.6730922,0.000225,2]
[340216229,1728849038698,-2004.84186,0.000225,2]
[340216230,1728849038709,-10441.17998013,0.000225,2]
[340216231,1728849038721,-524923.62939643,0.000225,2]
[340216232,1728849038733,-1759.48135128,0.000225,2]
[340216233,1728849038748,-6904.82972179,0.000225,2]
[340216234,1728849038760,-769.1569128,0.000225,2]
[340216235,1728849038773,-575.30635287,0.000225,2]
[340216236,1728849038784,-675.54813812,0.000225,2]
[340216237,1728849038799,-900092.33104403,0.000225,2]
[340216238,1728849038811,-3742.70217563,0.000225,2]
[340216239,1728849038824,-3061.20815,0.000225,2]
[340216240,1728849038835,-28119.1141531,0.000225,2]
[340216241,1728849038847,-1129521.75317735,0.000225,2]
[340216242,1728849038858,-1517.50982453,0.000225,2]
[340216243,1728849038871,-500.56436029,0.000225,2]
[340216244,1728849038883,-3692.56121159,0.000225,2]
[340216245,1728849038896,-546.35516445,0.000225,2]
[340216246,1728849038909,-901.71984,0.000225,2]
[340216247,1728849038922,-32234.58733742,0.000225,2]
[340216248,1728849038935,-1101.02903969,0.000225,2]
[340216249,1728849038948,-1043.96565342,0.000225,2]
[340216250,1728849038960,-21049.79701956,0.000225,2]
[340216251,1728849038972,-26139.36932887,0.000225,2]
[340216252,1728849038983,-5979.78453988,0.000225,2]
[340216253,1728849038997,-51634.86,0.000225,2]
[340216254,1728849039010,-3525.86554151,0.000225,2]
[340216255,1728849039023,-7082.35051429,0.000225,2]
[340216257,1728849039034,-280.407,0.000225,2]
[340216259,1728849039046,-567.41014106,0.000225,2]
[340216260,1728849039059,-6218.1991,0.000225,2]
[340216261,1728849039073,-1128.24841438,0.000225,2]
[340216262,1728849039086,-5999.42878763,0.000225,2]
[340216263,1728849039100,-203064.10868541,0.000225,2]
[340216264,1728849039112,-501.99570964,0.000225,2]
[340216265,1728849039126,-500.0,0.000225,2]
[340216266,1728849039140,-632.85,0.000225,2]
[340216267,1728849039152,-12504.31307594,0.000225,2]
[340216268,1728849039165,-6884.76413115,0.000225,2]
[340216272,1728849039995,-35411.79694442,0.000225,2]
[340216273,1728849040061,-5199.29390086,0.000225,2]
[340216274,1728849040073,-1079.390001,0.000225,2]
[340216275,1728849040086,-1406.98951982,0.000225,2]
[340216276,1728849040112,-1570.02252688,0.000225,2]
[340216277,1728849040276,-919.5,0.000225,2]
[340216293,1728849043064,-314.98708918,0.000225,2]
[340216300,1728849043120,-841.39703486,0.000225,2]
[340216303,1728849043180,-1763.73999992,0.000225,2]
[340216304,1728849043192,-523.7012728,0.000225,2]
[340216305,1728849043206,-264.59998015,0.000225,2]
[340216306,1728849043392,-1260.0,0.000225,2]
[340216326,1728849045975,-33765.89999999,0.000225,2]
[340216327,1728849046031,-18972.59976536,0.000225,2]
[340216328,1728849046196,-2649.51675651,0.000225,2]
[340216329,1728849046210,-19837.10785248,0.000225,2]
[340216349,1728849062822,-191.21208774,0.00022402,2]
[340216350,1728849062850,-2999808.78791226,0.000225,2]
[340216353,1728849138192,-1188.68208157,0.0002228,2]
[340216354,1728849138220,-1424.43074576,0.00022402,2]
[340216355,1728849138246,-182.76907668,0.00022402,2]
[340216356,1728849138273,-4902.962108,0.00022469,2]
[340216357,1728849138297,-16595.08242307,0.00022469,2]
[340216358,1728849138322,-1307.81262358,0.00022469,2]
[340216359,1728849138348,-500.0,0.00022473,2]
[340216360,1728849138376,-184.96,0.0002249,3]
[340216361,1728849138402,-554.91,0.0002249,3]
[340216362,1728849138432,-2973158.39094134,0.000225,2]
[340216363,1728849151180,-369.92,0.0002386,3]
[340216364,1728849151211,-169.33,0.00027215,15]
[340216365,1728849151236,-1009.0,0.0003,3]
[340216366,1728849151262,-173.21,0.00030371,120]
[340216367,1728849151287,-1009.9818309,0.0003098,30]
[340216368,1728849151312,-2090.42,0.0003218,10]
[340216369,1728849151346,-3809.83,0.0003218,10]
[340216370,1728849151378,-3174.86,0.0003218,10]
[340216371,1728849151401,-2645.71,0.0003218,10]
[340216372,1728849151424,-2703.20890578,0.0003219,4]